fUST/lending_fUST_20250524
["ID","MTS","AMOUNT","RATE_DAILY","PERIOD"]
[362202058,1748089836362,-430.0,0.00021917,3]
[362202059,1748089836371,-430.0,0.00021917,3]
[362202060,1748089836380,-795.25,0.00021917,3]
[362202061,1748089836391,-430.0,0.00021917,3]
[362202062,1748089836400,-454.3561871,0.00021917,3]
[362202063,1748089836410,-528.95372577,0.00021917,3]
[362202064,1748089836419,-430.0,0.00021917,3]
[362202065,1748089836428,-430.0,0.00021917,3]
[362202066,1748089836437,-430.0,0.00021917,3]
[362202067,1748089836447,-430.0,0.00021917,3]
[362202068,1748089836456,-450.0,0.00021917,3]
[362202069,1748089836466,-430.0,0.00021917,3]
[362202070,1748089836475,-430.0,0.00021917,3]
[362202071,1748089836484,-430.0,0.00021917,3]
[362202072,1748089836494,-430.0,0.00021917,3]
[362202073,1748089836503,-400.0,0.00021917,3]
[362202074,1748089836512,-578.88,0.00021917,3]
[362202075,1748089836521,-430.0,0.00021917,3]
[362202076,1748089836530,-400.43254673,0.00021917,3]
[362202077,1748089836542,-430.0,0.00021917,3]
[362202078,1748089836551,-430.0,0.00021917,3]
[362202079,1748089836560,-630.08,0.00021917,3]
[362202080,1748089836569,-2273.03,0.00021917,3]
[362202081,1748089836578,-430.0,0.00021917,3]
[362202082,1748089836587,-430.0,0.00021917,3]
[362202083,1748089836596,-400.0,0.00021917,3]
[362202084,1748089836605,-430.0,0.00021917,3]
[362202085,1748089836615,-400.72982171,0.00021917,3]
[362202086,1748089836625,-450.0,0.00021917,3]
[362202087,1748089836636,-430.0,0.00021917,3]
[362202088,1748089836646,-430.0,0.00021917,3]
[362202089,1748089836656,-430.0,0.00021917,3]
[362202090,1748089836665,-430.0,0.00021917,3]
[362202091,1748089836675,-287.93113158,0.00021917,3]
[362202092,1748089836684,-430.0,0.00021917,3]
[362202093,1748089836693,-430.0,0.00021917,3]
[362202094,1748089836702,-430.0,0.00021917,3]
[362202095,1748089836712,-430.0,0.00021917,3]
[362202096,1748089836721,-430.0,0.00021917,3]
[362202097,1748089836732,-430.0,0.00021917,3]
[362202098,1748089836741,-483.23,0.00021917,3]
[362202099,1748089836750,-430.0,0.00021917,3]
[362202100,1748089836760,-430.0,0.00021917,3]
[362202101,1748089836769,-430.0,0.00021917,3]
[362202102,1748089836778,-430.0,0.00021917,3]
[362202103,1748089836790,-430.0,0.00021917,3]
[362202104,1748089836800,-430.0,0.00021917,3]
[362202105,1748089836809,-430.0,0.00021917,3]
[362202106,1748089836819,-500.0,0.00021917,3]
[362202107,1748089836828,-500.0,0.00021917,3]
[362202108,1748089836837,-163.42293248,0.00021917,3]
[362202109,1748089836846,-430.0,0.00021917,3]
[362202110,1748089836855,-430.0,0.00021917,3]
[362202111,1748089836864,-430.0,0.00021917,3]
[362202112,1748089836873,-430.0,0.00021917,3]
[362202113,1748089836882,-430.0,0.00021917,3]
[362202114,1748089836891,-430.0,0.00021917,3]
[362202115,1748089836901,-430.0,0.00021917,3]
[362202116,1748089836910,-430.0,0.00021917,3]
[362202117,1748089836919,-500.0,0.00021917,3]
[362202118,1748089836928,-500.0,0.00021917,3]
[362202119,1748089836938,-452.54390659,0.00021917,3]
[362202120,1748089836947,-500.0,0.00021917,3]
[362202121,1748089836956,-500.0,0.00021917,3]
[362202122,1748089836965,-500.0,0.00021917,3]
[362202123,1748089837070,-430.0,0.00021917,3]
[362202124,1748089837080,-500.0,0.00021917,3]
[362202125,1748089837089,-500.0,0.00021917,3]
[362202126,1748089837100,-430.0,0.00021917,3]
[362202127,1748089837110,-500.0,0.00021917,3]
[362202128,1748089837121,-500.0,0.00021917,3]
[362202129,1748089837133,-430.0,0.00021917,3]
[362202130,1748089837143,-500.0,0.00021917,3]
[362202131,1748089837152,-279.24,0.00021917,3]
[362202132,1748089837161,-487.11767686,0.00021917,3]
[362202133,1748089837171,-430.0,0.00021917,3]
[362202134,1748089837182,-430.0,0.00021917,3]
[362202135,1748089837193,-430.0,0.00021917,3]
[362202136,1748089837203,-430.0,0.00021917,3]
[362202137,1748089837212,-430.0,0.00021917,3]
[362202138,1748089837223,-430.0,0.00021917,3]
[362202139,1748089837232,-430.0,0.00021917,3]
[362202140,1748089837241,-484.2,0.00021917,3]
[362202141,1748089837251,-260.0,0.00021917,3]
[362202142,1748089837263,-430.0,0.00021917,3]
[362202143,1748089837273,-759.57,0.00021917,3]
[362202144,1748089837287,-430.0,0.00021917,3]
[362202145,1748089837296,-430.0,0.00021917,3]
[362202146,1748089837307,-410.52168767,0.00021917,3]
[362202147,1748089837317,-430.0,0.00021917,3]
[362202148,1748089837326,-430.0,0.00021917,3]
[362202149,1748089837335,-430.0,0.00021917,3]
[362202150,1748089837345,-437.39,0.00021917,3]
[362202151,1748089837358,-430.0,0.00021917,3]
[362202152,1748089837369,-430.0,0.00021917,3]
[362202153,1748089837381,-430.0,0.00021917,3]
[362202154,1748089837391,-430.0,0.00021917,3]
[362202155,1748089837401,-430.0,0.00021917,3]
[362202156,1748089837411,-543.20736509,0.00021917,3]
[362202157,1748089837420,-850.44,0.00021917,3]
[362202158,1748089837429,-430.0,0.00021917,3]
[362202159,1748089837438,-430.0,0.00021917,3]
[362202160,1748089837447,-430.0,0.00021917,3]
[362202161,1748089837457,-430.0,0.00021917,3]
[362202162,1748089837466,-430.0,0.00021917,3]
[362202163,1748089837475,-430.0,0.00021917,3]
[362202164,1748089837484,-293.42558668,0.00021917,3]
[362202165,1748089837493,-430.0,0.00021917,3]
[362202166,1748089837503,-430.0,0.00021917,3]
[362202167,1748089837512,-430.0,0.00021917,3]
[362202168,1748089837521,-430.0,0.00021917,3]
[362202169,1748089837530,-430.0,0.00021917,3]
[362202170,1748089837542,-430.0,0.00021917,3]
[362202171,1748089837552,-430.0,0.00021917,3]
[362202172,1748089837561,-430.0,0.00021917,3]
[362202173,1748089837570,-430.0,0.00021917,3]
[362202174,1748089837579,-430.0,0.00021917,3]
[362202175,1748089837587,-1036.01,0.00021917,3]
[362202176,1748089837596,-400.0,0.00021917,3]
[362202177,1748089837605,-430.0,0.00021917,3]
[362202178,1748089837614,-430.0,0.00021917,3]
[362202179,1748089837623,-430.0,0.00021917,3]
[362202180,1748089837633,-430.0,0.00021917,3]
[362202181,1748089837642,-430.0,0.00021917,3]
[362202182,1748089837652,-430.0,0.00021917,3]
[362202183,1748089837661,-394.99251723,0.00021917,3]
[362202184,1748089837670,-340.0,0.00021917,3]
[362202185,1748089837679,-430.0,0.00021917,3]
[362202186,1748089837688,-340.62453092,0.00021917,3]
[362202187,1748089837698,-430.0,0.00021917,3]
[362202188,1748089837707,-430.0,0.00021917,3]
[362202189,1748089837716,-430.0,0.00021917,3]
[362202190,1748089837725,-430.0,0.00021917,3]
[362202191,1748089837734,-430.0,0.00021917,3]
[362202192,1748089837743,-430.0,0.00021917,3]
[362202193,1748089837752,-3265.64,0.00021917,2]
[362202194,1748089837761,-430.0,0.00021917,3]
[362202195,1748089837770,-430.0,0.00021917,3]
[362202196,1748089837779,-680.77,0.00021917,3]
[362202197,1748089837791,-430.0,0.00021917,3]
[362202198,1748089837800,-430.0,0.00021917,3]
[362202199,1748089837810,-2903.16,0.00021917,3]
[362202200,1748089837819,-430.0,0.00021917,3]
[362202201,1748089837828,-370.95449768,0.00021917,3]
[362202202,1748089837838,-943.64,0.00021917,3]
[362202203,1748089837847,-430.0,0.00021917,3]
[362202204,1748089837857,-430.0,0.00021917,3]
[362202205,1748089837866,-1333.12,0.00021917,3]
[362202206,1748089837875,-430.0,0.00021917,3]
[362202207,1748089837885,-430.0,0.00021917,3]
[362202208,1748089837894,-430.0,0.00021917,3]
[362202210,1748089837904,-430.0,0.00021917,3]
[362202212,1748089837913,-430.0,0.00021917,3]
[362202213,1748089837924,-500.0,0.00021934,2]
[362202214,1748089837933,-500.0,0.00021955,2]
[362202215,1748089837942,-520.16409903,0.0002197,2]
[362202216,1748089837951,-500.85187635,0.0002197,2]
[362202217,1748089837962,-518.43483232,0.00021973,2]
[362202218,1748089837972,-500.0,0.00021989,2]
[362202219,1748089837983,-500.0,0.00021989,2]
[362202220,1748089837992,-524.19610615,0.00021989,2]
[362202221,1748089838002,-500.0,0.00021989,2]
[362202222,1748089838012,-5848.42781522,0.0002203,2]
[362202223,1748089838021,-500.0,0.00022056,2]
[362202224,1748089838031,-160.0,0.00022162,2]
[362202225,1748089838043,-229.12393663,0.00022162,2]
[362202226,1748089838052,-212.51988043,0.00022162,2]
[362202227,1748089838061,-422.929492,0.00022174,2]
[362202228,1748089838071,-160.0,0.00022174,2]
[362202229,1748089838080,-160.0,0.00022174,2]
[362202230,1748089838089,-500.0,0.00022174,2]
[362202231,1748089838099,-513.94875728,0.00022191,3]
[362202232,1748089838108,-430.0,0.00022191,3]
[362202233,1748089838120,-430.0,0.00022191,3]
[362202234,1748089838129,-430.0,0.00022191,3]
[362202235,1748089838139,-430.0,0.00022191,3]
[362202236,1748089838148,-430.0,0.00022191,3]
[362202237,1748089838157,-430.0,0.00022191,3]
[362202238,1748089838167,-430.0,0.00022191,3]
[362202239,1748089838177,-430.0,0.00022191,3]
[362202240,1748089838190,-430.0,0.00022191,3]
[362202241,1748089838202,-521.82,0.00022191,2]
[362202242,1748089838213,-200.86877407,0.00022191,3]
[362202243,1748089838223,-431.39,0.00022191,3]
[362202244,1748089838234,-430.0,0.00022191,3]
[362202245,1748089838244,-430.0,0.00022191,3]
[362202246,1748089838254,-430.0,0.00022191,3]
[362202247,1748089838263,-430.0,0.00022191,3]
[362202248,1748089838273,-430.0,0.00022191,3]
[362202249,1748089838282,-430.0,0.00022191,3]
[362202250,1748089838292,-430.0,0.00022191,3]
[362202251,1748089838301,-430.0,0.00022191,3]
[362202252,1748089838311,-430.0,0.00022191,3]
[362202253,1748089838319,-431.40937291,0.00022191,3]
[362202254,1748089838328,-430.0,0.00022191,3]
[362202255,1748089838337,-430.0,0.00022191,3]
[362202256,1748089838346,-430.0,0.00022191,3]
[362202257,1748089838355,-430.0,0.00022191,3]
[362202258,1748089838364,-430.0,0.00022191,3]
[362202259,1748089838374,-430.0,0.00022191,3]
[362202260,1748089838383,-430.0,0.00022191,3]
[362202261,1748089838392,-430.0,0.00022191,3]
[362202262,1748089838402,-430.0,0.00022191,3]
[362202263,1748089838411,-430.0,0.00022191,3]
[362202264,1748089838420,-430.0,0.00022191,3]
[362202265,1748089838429,-430.0,0.00022191,3]
[362202266,1748089838438,-430.0,0.00022191,3]
[362202267,1748089838448,-430.0,0.00022191,3]
[362202268,1748089838457,-430.0,0.00022191,3]
[362202269,1748089838466,-430.0,0.00022191,3]
[362202270,1748089838475,-430.0,0.00022191,3]
[362202271,1748089838483,-430.0,0.00022191,3]
[362202272,1748089838492,-430.0,0.00022191,3]
[362202273,1748089838501,-430.0,0.00022191,3]
[362202274,1748089838510,-430.0,0.00022191,3]
[362202275,1748089838519,-535.11,0.00022191,3]
[362202276,1748089838528,-430.0,0.00022191,3]
[362202277,1748089838541,-430.0,0.00022191,3]
[362202278,1748089838550,-430.0,0.00022191,3]
[362202279,1748089838560,-903.05,0.00022191,3]
[362202280,1748089838569,-1442.46,0.00022191,3]
[362202281,1748089838579,-430.0,0.00022191,3]
[362202282,1748089838588,-499.94,0.00022191,3]
[362202283,1748089838597,-430.0,0.00022191,3]
[362202284,1748089838606,-1715.8,0.00022191,3]
[362202285,1748089838615,-430.0,0.00022191,3]
[362202286,1748089838624,-430.0,0.00022191,3]
[362202287,1748089838634,-430.0,0.00022191,3]
[362202288,1748089838644,-795.25,0.00022191,3]
[362202289,1748089838653,-430.0,0.00022191,3]
[362202290,1748089838662,-430.0,0.00022191,3]
[362202291,1748089838671,-430.0,0.00022191,3]
[362202293,1748089838681,-578.88,0.00022191,3]
[362202295,1748089838691,-430.0,0.00022191,3]
[362202297,1748089838700,-430.0,0.00022191,3]
[362202299,1748089838709,-630.08,0.00022191,3]
[362202301,1748089838719,-2273.03,0.00022191,3]
[362202303,1748089838729,-430.0,0.00022191,3]
[362202305,1748089838738,-430.0,0.00022191,3]
[362202307,1748089838747,-430.0,0.00022191,3]
[362202309,1748089838756,-430.0,0.00022191,3]
[362202311,1748089838766,-430.0,0.00022191,3]
[362202313,1748089838775,-483.23,0.00022191,3]
[362202315,1748089838788,-430.0,0.00022191,3]
[362202317,1748089838796,-430.0,0.00022191,3]
[362202319,1748089838805,-430.0,0.00022191,3]
[362202321,1748089838814,-430.0,0.00022191,3]
[362202322,1748089838823,-430.0,0.00022191,3]
[362202324,1748089838832,-430.0,0.00022191,3]
[362202326,1748089838841,-430.0,0.00022191,3]
[362202328,1748089838851,-430.0,0.00022191,3]
[362202330,1748089838862,-430.0,0.00022191,3]
[362202332,1748089838871,-430.0,0.00022191,3]
[362202334,1748089838880,-484.2,0.00022191,3]
[362202337,1748089838890,-430.0,0.00022191,3]
[362202339,1748089838900,-759.57,0.00022191,3]
[362202340,1748089838909,-430.0,0.00022191,3]
[362202343,1748089838919,-437.39,0.00022191,3]
[362202345,1748089838928,-430.0,0.00022191,3]
[362202347,1748089838937,-850.44,0.00022191,3]
[362202348,1748089838946,-430.0,0.00022191,3]
[362202350,1748089838956,-430.0,0.00022191,3]
[362202352,1748089838966,-430.0,0.00022191,3]
[362202355,1748089838975,-430.0,0.00022191,3]
[362202357,1748089838984,-430.0,0.00022191,3]
[362202358,1748089838994,-430.0,0.00022191,3]
[362202360,1748089839003,-430.0,0.00022191,3]
[362202362,1748089839013,-1036.01,0.00022191,3]
[362202364,1748089839022,-430.0,0.00022191,3]
[362202366,1748089839033,-430.0,0.00022191,3]
[362202369,1748089839046,-432.15,0.00022191,3]
[362202371,1748089839057,-430.0,0.00022191,3]
[362202373,1748089839066,-430.0,0.00022191,3]
[362202375,1748089839077,-430.0,0.00022191,3]
[362202377,1748089839086,-430.0,0.00022191,3]
[362202379,1748089839096,-680.77,0.00022191,3]
[362202381,1748089839105,-430.0,0.00022191,3]
[362202383,1748089839114,-2903.16,0.00022191,3]
[362202385,1748089839124,-943.64,0.00022191,3]
[362202387,1748089839133,-1333.12,0.00022191,3]
[362202389,1748089839142,-430.0,0.00022191,3]
[362202391,1748089839151,-430.0,0.00022191,3]
[362202393,1748089839161,-430.0,0.00022191,3]
[362202395,1748089839169,-430.0,0.00022191,3]
[362202397,1748089839178,-205.06747713,0.00022329,7]
[362202399,1748089839191,-207.4,0.0002244,2]
[362202401,1748089839200,-500.0,0.00022451,2]
[362202403,1748089839210,-500.0,0.00022464,2]
[362202405,1748089839219,-160.0,0.00022464,2]
[362202407,1748089839229,-430.0,0.00022465,3]
[362202409,1748089839239,-430.0,0.00022465,3]
[362202411,1748089839248,-430.0,0.00022465,3]
[362202413,1748089839258,-430.0,0.00022465,3]
[362202415,1748089839268,-430.0,0.00022465,3]
[362202416,1748089839277,-430.0,0.00022465,3]
[362202419,1748089839291,-430.0,0.00022465,3]
[362202420,1748089839300,-521.82,0.00022465,2]
[362202422,1748089839309,-431.39,0.00022465,3]
[362202424,1748089839319,-430.0,0.00022465,3]
[362202426,1748089839328,-430.0,0.00022465,3]
[362202428,1748089839338,-430.0,0.00022465,3]
[362202430,1748089839348,-290.0,0.00022465,3]
[362202433,1748089839357,-545.76247446,0.00022465,3]
[362202434,1748089839366,-350.0,0.00022465,3]
[362202436,1748089839376,-430.0,0.00022465,3]
[362202439,1748089839385,-430.0,0.00022465,3]
[362202440,1748089839394,-430.0,0.00022465,3]
[362202442,1748089839403,-430.0,0.00022465,3]
[362202447,1748089839501,-430.0,0.00022465,3]
[362202448,1748089839511,-430.0,0.00022465,3]
[362202449,1748089839520,-430.0,0.00022465,3]
[362202450,1748089839529,-380.28137939,0.00022465,3]
[362202451,1748089839541,-568.51930906,0.00022465,3]
[362202452,1748089839550,-430.0,0.00022465,3]
[362202453,1748089839559,-334.28957184,0.00022465,3]
[362202454,1748089839569,-545.77,0.00022465,3]
[362202455,1748089839578,-430.0,0.00022465,3]
[362202456,1748089839586,-430.0,0.00022465,3]
[362202457,1748089839595,-430.0,0.00022465,3]
[362202458,1748089839605,-430.0,0.00022465,3]
[362202459,1748089839614,-430.0,0.00022465,3]
[362202460,1748089839624,-430.0,0.00022465,3]
[362202461,1748089839634,-430.0,0.00022465,3]
[362202462,1748089839644,-430.0,0.00022465,3]
[362202463,1748089839653,-430.0,0.00022465,3]
[362202464,1748089839662,-535.11,0.00022465,3]
[362202465,1748089839672,-430.0,0.00022465,3]
[362202466,1748089839682,-430.0,0.00022465,3]
[362202467,1748089839692,-903.05,0.00022465,3]
[362202468,1748089839702,-1442.46,0.00022465,3]
[362202469,1748089839711,-430.0,0.00022465,3]
[362202470,1748089839721,-499.94,0.00022465,3]
[362202471,1748089839731,-430.0,0.00022465,3]
[362202472,1748089839741,-1715.8,0.00022465,3]
[362202473,1748089839750,-430.0,0.00022465,3]
[362202474,1748089839759,-430.0,0.00022465,3]
[362202475,1748089839769,-430.0,0.00022465,3]
[362202476,1748089839778,-795.25,0.00022465,3]
[362202477,1748089839791,-430.0,0.00022465,3]
[362202478,1748089839800,-430.0,0.00022465,3]
[362202479,1748089839810,-430.0,0.00022465,3]
[362202480,1748089839820,-578.88,0.00022465,3]
[362202481,1748089839829,-430.0,0.00022465,3]
[362202482,1748089839839,-430.0,0.00022465,3]
[362202483,1748089839848,-630.08,0.00022465,3]
[362202484,1748089839858,-2273.03,0.00022465,3]
[362202485,1748089839867,-430.0,0.00022465,3]
[362202486,1748089839876,-430.0,0.00022465,3]
[362202488,1748089839887,-430.0,0.00022465,3]
[362202489,1748089839896,-430.0,0.00022465,3]
[362202490,1748089839905,-430.0,0.00022465,3]
[362202491,1748089839915,-483.23,0.00022465,3]
[362202492,1748089839924,-430.0,0.00022465,3]
[362202493,1748089839934,-430.0,0.00022465,3]
[362202494,1748089839943,-430.0,0.00022465,3]
[362202495,1748089839953,-430.0,0.00022465,3]
[362202496,1748089839962,-430.0,0.00022465,3]
[362202497,1748089839972,-430.0,0.00022465,3]
[362202498,1748089839982,-430.0,0.00022465,3]
[362202499,1748089839991,-430.0,0.00022465,3]
[362202501,1748089840001,-430.0,0.00022465,3]
[362202503,1748089840011,-484.2,0.00022465,3]
[362202505,1748089840020,-430.0,0.00022465,3]
[362202507,1748089840030,-759.57,0.00022465,3]
[362202509,1748089840042,-430.0,0.00022465,3]
[362202511,1748089840052,-437.39,0.00022465,3]
[362202513,1748089840061,-430.0,0.00022465,3]
[362202515,1748089840070,-850.44,0.00022465,3]
[362202517,1748089840080,-481.19928085,0.00022465,3]
[362202518,1748089840089,-430.0,0.00022465,3]
[362202520,1748089840098,-430.0,0.00022465,3]
[362202522,1748089840107,-430.0,0.00022465,3]
[362202524,1748089840117,-430.0,0.00022465,3]
[362202526,1748089840126,-430.0,0.00022465,3]
[362202528,1748089840136,-1036.01,0.00022465,3]
[362202530,1748089840145,-430.0,0.00022465,3]
[362202532,1748089840154,-430.0,0.00022465,3]
[362202534,1748089840164,-430.0,0.00022465,3]
[362202536,1748089840173,-430.0,0.00022465,3]
[362202538,1748089840189,-680.77,0.00022465,3]
[362202541,1748089840198,-188.1496112,0.00022465,3]
[362202543,1748089840209,-2903.16,0.00022465,3]
[362202545,1748089840219,-943.64,0.00022465,3]
[362202547,1748089840230,-1333.12,0.00022465,3]
[362202549,1748089840239,-430.0,0.00022465,3]
[362202551,1748089840248,-430.0,0.00022465,3]
[362202553,1748089840258,-500.0,0.00022537,2]
[362202555,1748089840268,-1001.55490028,0.00022537,2]
[362202557,1748089840279,-256.7347077,0.00022739,3]
[362202559,1748089840292,-185.09146306,0.00022739,3]
[362202561,1748089840302,-569.83177003,0.00022739,3]
[362202564,1748089840311,-430.0,0.00022739,3]
[362202565,1748089840320,-521.82,0.00022739,2]
[362202567,1748089840330,-431.39,0.00022739,3]
[362202568,1748089840339,-430.0,0.00022739,3]
[362202569,1748089840349,-430.0,0.00022739,3]
[362202570,1748089840358,-430.0,0.00022739,3]
[362202572,1748089840368,-430.0,0.00022739,3]
[362202574,1748089840378,-430.0,0.00022739,3]
[362202576,1748089840387,-430.0,0.00022739,3]
[362202578,1748089840396,-430.0,0.00022739,3]
[362202580,1748089840405,-184.43774827,0.00022739,3]
[362202582,1748089840415,-430.0,0.00022739,3]
[362202584,1748089840424,-430.0,0.00022739,3]
[362202586,1748089840433,-430.0,0.00022739,3]
[362202588,1748089840442,-430.0,0.00022739,3]
[362202590,1748089840451,-430.0,0.00022739,3]
[362202592,1748089840461,-430.0,0.00022739,3]
[362202594,1748089840470,-430.0,0.00022739,3]
[362202596,1748089840480,-573.32,0.00022739,3]
[362202598,1748089840489,-430.0,0.00022739,3]
[362202600,1748089840499,-430.0,0.00022739,3]
[362202602,1748089840508,-430.0,0.00022739,3]
[362202604,1748089840517,-535.11,0.00022739,3]
[362202606,1748089840527,-903.05,0.00022739,3]
[362202608,1748089840539,-1442.46,0.00022739,3]
[362202610,1748089840547,-430.0,0.00022739,3]
[362202612,1748089840557,-499.94,0.00022739,3]
[362202614,1748089840571,-430.0,0.00022739,3]
[362202616,1748089840580,-1715.8,0.00022739,3]
[362202618,1748089840589,-430.0,0.00022739,3]
[362202620,1748089840598,-430.0,0.00022739,3]
[362202622,1748089840607,-430.0,0.00022739,3]
[362202624,1748089840616,-795.25,0.00022739,3]
[362202626,1748089840627,-430.0,0.00022739,3]
[362202628,1748089840636,-430.0,0.00022739,3]
[362202630,1748089840644,-430.0,0.00022739,3]
[362202631,1748089840653,-578.88,0.00022739,3]
[362202633,1748089840662,-430.0,0.00022739,3]
[362202635,1748089840671,-430.0,0.00022739,3]
[362202638,1748089840680,-630.08,0.00022739,3]
[362202639,1748089840691,-2273.03,0.00022739,3]
[362202641,1748089840700,-430.0,0.00022739,3]
[362202642,1748089840709,-430.0,0.00022739,3]
[362202645,1748089840719,-430.0,0.00022739,3]
[362202647,1748089840729,-430.0,0.00022739,3]
[362202648,1748089840738,-483.23,0.00022739,3]
[362202650,1748089840748,-430.0,0.00022739,3]
[362202653,1748089840763,-430.0,0.00022739,3]
[362202655,1748089840776,-430.0,0.00022739,3]
[362202658,1748089840791,-430.0,0.00022739,3]
[362202660,1748089840803,-456.08,0.00022739,3]
[362202662,1748089840814,-430.0,0.00022739,3]
[362202663,1748089840823,-484.2,0.00022739,3]
[362202665,1748089840833,-430.0,0.00022739,3]
[362202667,1748089840842,-759.57,0.00022739,3]
[362202668,1748089840851,-430.0,0.00022739,3]
[362202670,1748089840861,-437.39,0.00022739,3]
[362202672,1748089840870,-430.0,0.00022739,3]
[362202673,1748089840879,-850.44,0.00022739,3]
[362202675,1748089840888,-438.99,0.00022739,3]
[362202676,1748089840897,-430.0,0.00022739,3]
[362202678,1748089840906,-430.0,0.00022739,3]
[362202680,1748089840915,-430.0,0.00022739,3]
[362202681,1748089840925,-1036.01,0.00022739,3]
[362202683,1748089840934,-430.0,0.00022739,3]
[362202685,1748089840944,-430.0,0.00022739,3]
[362202687,1748089840954,-430.0,0.00022739,3]
[362202688,1748089840963,-430.0,0.00022739,3]
[362202690,1748089840974,-680.77,0.00022739,3]
[362202692,1748089840983,-2903.16,0.00022739,3]
[362202693,1748089840992,-943.64,0.00022739,3]
[362202695,1748089841002,-1333.12,0.00022739,3]
[362202696,1748089841011,-430.0,0.00022739,3]
[362202698,1748089841021,-430.0,0.00022739,3]
[362202700,1748089841030,-160.0,0.00023,3]
[362202702,1748089841044,-160.0,0.00023,3]
[362202703,1748089841053,-404.0,0.00023,2]
[362202705,1748089841063,-229.12393663,0.00023,3]
[362202707,1748089841072,-160.0,0.00023,3]
[362202709,1748089841081,-501.64,0.00023013,3]
[362202710,1748089841090,-521.82,0.00023013,2]
[362202712,1748089841099,-431.39,0.00023013,3]
[362202714,1748089841108,-430.0,0.00023013,3]
[362202716,1748089841118,-430.0,0.00023013,3]
[362202717,1748089841128,-430.0,0.00023013,3]
[362202719,1748089841138,-430.0,0.00023013,3]
[362202721,1748089841147,-430.0,0.00023013,3]
[362202722,1748089841156,-535.11,0.00023013,3]
[362202723,1748089841165,-903.05,0.00023013,3]
[362202724,1748089841174,-1442.46,0.00023013,3]
[362202725,1748089841186,-430.0,0.00023013,3]
[362202726,1748089841197,-499.94,0.00023013,3]
[362202728,1748089841206,-430.0,0.00023013,3]
[362202730,1748089841215,-1715.8,0.00023013,3]
[362202732,1748089841226,-566.76,0.00023013,3]
[362202734,1748089841235,-172.32126794,0.00023013,3]
[362202736,1748089841245,-430.0,0.00023013,3]
[362202738,1748089841255,-795.25,0.00023013,3]
[362202740,1748089841265,-430.0,0.00023013,3]
[362202742,1748089841275,-578.88,0.00023013,3]
[362202744,1748089841289,-430.0,0.00023013,3]
[362202746,1748089841298,-430.0,0.00023013,3]
[362202748,1748089841307,-630.08,0.00023013,3]
[362202750,1748089841317,-2273.03,0.00023013,3]
[362202752,1748089841326,-430.0,0.00023013,3]
[362202754,1748089841335,-430.0,0.00023013,3]
[362202756,1748089841343,-430.0,0.00023013,3]
[362202758,1748089841353,-483.23,0.00023013,3]
[362202760,1748089841362,-430.0,0.00023013,3]